fUST/lending_fUST_20251211
["ID","MTS","AMOUNT","RATE_DAILY","PERIOD"]
[398120818,1765385448760,-533.72,0.00014375,2]
[398120820,1765385448769,-1242.86,0.00014375,2]
[398120822,1765385448779,-500.0,0.00014375,2]
[398120824,1765385448788,-500.0,0.00014375,2]
[398120826,1765385448796,-710.02,0.00014375,2]
[398120828,1765385448805,-500.0,0.00014375,2]
[398120830,1765385448814,-1459.12,0.00014375,2]
[398120831,1765385448824,-500.0,0.00014375,2]
[398120833,1765385448833,-2154.04,0.00014375,2]
[398120835,1765385448842,-500.0,0.00014375,2]
[398120837,1765385448851,-500.0,0.00014375,2]
[398120839,1765385448860,-500.0,0.00014375,2]
[398120841,1765385448870,-1810.81,0.00014375,2]
[398120843,1765385448879,-169.782002,0.00014375,2]
[398120845,1765385448888,-500.0,0.00014375,2]
[398120847,1765385448900,-714.62,0.00014375,2]
[398120849,1765385448909,-2982.48,0.00014375,2]
[398120851,1765385448918,-500.0,0.00014375,2]
[398120853,1765385448927,-1266.731772,0.00014375,2]
[398120855,1765385448936,-1148.04,0.00014375,2]
[398120857,1765385448944,-990.53,0.00014375,2]
[398120859,1765385448954,-500.0,0.00014375,2]
[398120861,1765385448963,-500.0,0.00014375,2]
[398120863,1765385448972,-969.18,0.00014375,2]
[398120865,1765385448982,-1026.36,0.00014375,2]
[398120867,1765385448992,-699.9,0.00014375,2]
[398120869,1765385449001,-504.12872473,0.00014375,2]
[398120871,1765385449010,-500.0,0.00014375,2]
[398120873,1765385449019,-500.0,0.00014375,2]
[398120875,1765385449028,-759.34,0.00014375,2]
[398120877,1765385449037,-1049.38,0.00014375,2]
[398120879,1765385449046,-500.0,0.00014375,2]
[398120881,1765385449056,-500.0,0.00014375,2]
[398120883,1765385449066,-1635.23,0.00014375,2]
[398120886,1765385449076,-500.0,0.00014375,2]
[398120888,1765385449086,-500.0,0.00014375,2]
[398120890,1765385449095,-500.0,0.00014375,2]
[398120892,1765385449104,-500.0,0.00014375,2]
[398120894,1765385449114,-500.0,0.00014375,2]
[398120896,1765385449123,-1471.56,0.00014375,2]
[398120898,1765385449132,-235.718213,0.00014375,2]
[398120900,1765385449141,-500.0,0.00014375,2]
[398120902,1765385449150,-500.0,0.00014375,2]
[398120904,1765385449159,-500.0,0.00014375,2]
[398120906,1765385449168,-2352.18,0.00014375,2]
[398120907,1765385449178,-500.0,0.00014375,2]
[398120909,1765385449187,-500.0,0.00014375,2]
[398120911,1765385449196,-1849.82,0.00014375,2]
[398120913,1765385449205,-513.22,0.00014375,2]
[398120915,1765385449214,-1345.83,0.00014375,2]
[398120917,1765385449223,-500.91389924,0.00014375,2]
[398120919,1765385449232,-2571.77,0.00014375,2]
[398120921,1765385449241,-801.2,0.00014375,2]
[398120923,1765385449250,-4820.01,0.00014375,2]
[398120925,1765385449259,-523.58,0.00014375,2]
[398120927,1765385449269,-500.55482411,0.00014375,2]
[398120929,1765385449281,-500.0,0.00014375,2]
[398120932,1765385449291,-1325.946754,0.00014375,2]
[398120934,1765385449300,-1325.946754,0.00014375,2]
[398120936,1765385449309,-500.0,0.00014375,2]
[398120938,1765385449320,-1325.946754,0.00014375,2]
[398120940,1765385449329,-1325.946754,0.00014375,2]
[398120942,1765385449339,-500.0,0.00014375,2]
[398120944,1765385449348,-1627.83,0.00014375,2]
[398120946,1765385449357,-1325.946754,0.00014375,2]
[398120948,1765385449367,-1325.946754,0.00014375,2]
[398120950,1765385449376,-5373.33,0.00014375,2]
[398120952,1765385449386,-1325.946754,0.00014375,2]
[398120954,1765385449396,-1325.946754,0.00014375,2]
[398120956,1765385449406,-500.0,0.00014375,2]
[398120958,1765385449416,-500.0,0.00014375,2]
[398120960,1765385449425,-695.1,0.00014375,2]
[398120962,1765385449434,-500.0,0.00014375,2]
[398120964,1765385449443,-500.0,0.00014375,2]
[398120966,1765385449452,-2179.61,0.00014375,2]
[398120968,1765385449460,-759.8,0.00014375,2]
[398120970,1765385449470,-683.54,0.00014375,2]
[398120972,1765385449479,-2618.37,0.00014375,2]
[398120974,1765385449488,-500.0,0.00014375,2]
[398120976,1765385449496,-500.0,0.00014375,2]
[398120978,1765385449505,-1520.89,0.00014375,2]
[398120980,1765385449514,-500.0,0.00014375,2]
[398120982,1765385449523,-2137.15,0.00014375,2]
[398120984,1765385449531,-985.77,0.00014375,2]
[398120986,1765385449540,-500.0,0.00014375,2]
[398120988,1765385449550,-2817.92,0.00014375,2]
[398120990,1765385449559,-500.0,0.00014375,2]
[398120992,1765385449568,-891.05,0.00014375,2]
[398120994,1765385449578,-1208.1,0.00014375,2]
[398120996,1765385449586,-500.0,0.00014375,2]
[398120998,1765385449595,-500.0,0.00014375,2]
[398121000,1765385449604,-1169.13,0.00014375,2]
[398121002,1765385449613,-500.0,0.00014375,2]
[398121004,1765385449622,-10079.82,0.00014375,2]
[398121006,1765385449632,-500.0,0.00014375,2]
[398121008,1765385449641,-962.78,0.00014375,2]
[398121010,1765385449652,-500.0,0.00014375,2]
[398121012,1765385449663,-500.0,0.00014375,2]
[398121014,1765385449674,-500.0,0.00014375,2]
[398121016,1765385449683,-1075.17,0.00014375,2]
[398121018,1765385449692,-500.0,0.00014375,2]
[398121020,1765385449700,-500.0,0.00014375,2]
[398121022,1765385449711,-500.0,0.00014375,2]
[398121023,1765385449720,-500.0,0.00014375,2]
[398121026,1765385449730,-793.84,0.00014375,2]
[398121028,1765385449739,-3380.56,0.00014375,2]
[398121029,1765385449749,-500.0,0.00014375,2]
[398121032,1765385449759,-6999.25,0.00014375,2]
[398121034,1765385449769,-500.0,0.00014375,2]
[398121035,1765385449778,-769.51,0.00014375,2]
[398121038,1765385449789,-533.33,0.00014375,2]
[398121040,1765385449798,-1320.28,0.00014375,2]
[398121042,1765385449807,-500.0,0.00014375,2]
[398121044,1765385449817,-500.0,0.00014375,2]
[398121046,1765385449826,-500.0,0.00014375,2]
[398121048,1765385449835,-500.0,0.00014375,2]
[398121050,1765385449844,-1872.7,0.00014375,2]
[398121052,1765385449854,-500.0,0.00014375,2]
[398121054,1765385449863,-500.0,0.00014375,2]
[398121056,1765385449872,-500.0,0.00014375,2]
[398121058,1765385449880,-500.0,0.00014375,2]
[398121060,1765385449889,-500.0,0.00014375,2]
[398121062,1765385449898,-500.0,0.00014375,2]
[398121064,1765385449908,-1467.94,0.00014375,2]
[398121066,1765385449916,-500.0,0.00014375,2]
[398121068,1765385449926,-686.15,0.00014375,2]
[398121070,1765385449935,-500.0,0.00014375,2]
[398121072,1765385449944,-500.0,0.00014375,2]
[398121074,1765385449954,-500.0,0.00014375,2]
[398121076,1765385449963,-500.0,0.00014375,2]
[398121078,1765385449972,-2836.29,0.00014375,2]
[398121080,1765385449982,-500.0,0.00014375,2]
[398121082,1765385449992,-500.0,0.00014375,2]
[398121084,1765385450000,-500.0,0.00014375,2]
[398121086,1765385450009,-500.0,0.00014375,2]
[398121088,1765385450018,-1325.22,0.00014375,2]
[398121090,1765385450028,-500.0,0.00014375,2]
[398121092,1765385450037,-1504.15,0.00014375,2]
[398121094,1765385450046,-724.53,0.00014375,2]
[398121096,1765385450055,-500.0,0.00014375,2]
[398121098,1765385450065,-500.0,0.00014375,2]
[398121100,1765385450074,-151.0,0.00014375,2]
[398121102,1765385450083,-151.0,0.00014375,2]
[398121104,1765385450092,-2453.64,0.00014375,2]
[398121106,1765385450101,-500.0,0.00014375,2]
[398121108,1765385450111,-500.0,0.00014375,2]
[398121110,1765385450120,-2583.06,0.00014375,2]
[398121112,1765385450129,-724.15,0.00014375,2]
[398121114,1765385450140,-500.0,0.00014375,2]
[398121115,1765385450151,-500.0,0.00014375,2]
[398121118,1765385450161,-500.0,0.00014375,2]
[398121120,1765385450171,-733.28,0.00014375,2]
[398121121,1765385450181,-2032.23,0.00014375,2]
[398121123,1765385450190,-1587.17,0.00014375,2]
[398121125,1765385450199,-500.0,0.00014375,2]
[398121128,1765385450210,-1249.66,0.00014375,2]
[398121130,1765385450219,-1982.09,0.00014375,2]
[398121131,1765385450228,-500.0,0.00014375,2]
[398121134,1765385450238,-3603.25,0.00014375,2]
[398121136,1765385450248,-1963.23,0.00014375,2]
[398121138,1765385450257,-1010.92,0.00014375,2]
[398121140,1765385450266,-1313.33,0.00014375,2]
[398121142,1765385450275,-206.43,0.00014375,2]
[398121144,1765385450284,-532.10871312,0.00014375,2]
[398121146,1765385450293,-591.62,0.00014375,2]
[398121147,1765385450302,-500.0,0.00014375,2]
[398121149,1765385450311,-535.49834876,0.00014375,2]
[398121151,1765385450321,-500.0,0.00014375,2]
[398121153,1765385450330,-910.29,0.00014375,2]
[398121155,1765385450340,-500.0,0.00014375,2]
[398121157,1765385450350,-16565.60883959,0.00014375,2]
[398121840,1765385458229,277.12067984,0.00011892,2]
[398122478,1765385522068,1007.27917063,0.00013399,2]
[398122691,1765386592643,369.43456686,0.00012982,2]
[398122692,1765386594877,664.98222035,0.00012982,2]
[398122693,1765386597376,1182.19061395,0.00012982,2]
[398122694,1765386599606,1847.1728343,0.00012982,2]
[398122695,1765386601971,2657.26895251,0.00012982,2]
[398122728,1765386632044,-300.0,0.00013664,2]
[398122731,1765386632053,-150.0,0.00013664,2]
[398122734,1765386632062,-348.38935422,0.00013665,2]
[398122737,1765386632072,-627.10083759,0.00013665,2]
[398122742,1765386632086,-1114.84593349,0.00013665,2]
[398122744,1765386632095,-1741.94677108,0.00013665,2]
[398122745,1765386632104,-2505.89494701,0.00013665,2]
[398122747,1765386632115,-615.0,0.00013665,2]
[398122749,1765386632124,-500.0,0.00013699,2]
[398122752,1765386632134,-500.0,0.00013699,2]
[398122754,1765386632144,-500.0,0.00013699,2]
[398122755,1765386632154,-453.9068089,0.00013699,2]
[398122758,1765386632164,-631.05737369,0.00013699,2]
[398122812,1765386638314,-221.04503731,0.00013699,2]
[398122813,1765386638324,-372.19138979,0.00013896,10]
[398122816,1765386638335,-526.80861021,0.00013896,10]
[398122817,1765386638345,-47.03817978,0.00013982,2]
[398122820,1765386638358,-472.72968921,0.00013982,2]
[398122822,1765386638369,-1829.72237853,0.00013982,2]
[398122824,1765386638379,-500.0,0.00014035,2]
[398122826,1765386638388,-720.46264865,0.00014035,2]
[398122828,1765386638399,-638.02735135,0.00014035,2]
[398122830,1765386638409,-500.0,0.00014035,2]
[398122832,1765386638419,-1947.7,0.00014035,2]
[398122834,1765386638428,-11443.30800712,0.00014077,2]
[398122836,1765386638440,-285.884835,0.00014077,2]
[398123013,1765386640303,-17649.84227368,0.00014077,2]
[398123015,1765386640315,-494.57533642,0.00014077,2]
[398123017,1765386640326,-5248.40096563,0.00014077,2]
[398123770,1765386647815,-84410.99229745,0.00014077,2]
[398125055,1765386842635,694.0,0.00013536,2]
[398125057,1765387123060,259.60023266,0.00012314,2]
[398125060,1765387353227,1097.69,0.000135,2]
[398126998,1765387908919,150.0,7.031e-05,2]
[398126999,1765387909314,150.0,7.366e-05,2]
[398127000,1765388246424,305.34162466,0.00012981,2]
[398127010,1765388487105,393.98528,0.000165,59]
[398127012,1765388503711,222.067,0.00013545,2]
[398127057,1765388853914,303.36037606,0.00012973,2]
[398127106,1765389032403,-585.50860064,0.00013643,2]
[398127335,1765389038570,-28.49139936,0.00013643,2]
[398127336,1765389038580,-150.0,0.00013646,2]
[398127337,1765389038590,-1000.0,0.00013699,2]
[398127338,1765389038599,-500.0,0.00013813,2]
[398127339,1765389038609,-647.75295285,0.00013813,2]
[398127340,1765389038674,-352.24704715,0.00013813,2]
[398127341,1765389038684,-500.0,0.00013813,2]
[398127342,1765389038694,-500.0,0.00013813,2]
[398127343,1765389038704,-500.0,0.00013813,2]
[398127344,1765389038715,-500.0,0.00013813,2]
[398127345,1765389038726,-500.0,0.00013813,2]
[398127346,1765389038736,-405.62215726,0.00013813,2]
[398127347,1765389038748,-2173.55569257,0.00013813,2]
[398127348,1765389038758,-500.0,0.00013813,2]
[398127349,1765389038768,-500.0,0.00013813,2]
[398127350,1765389038780,-175.79606047,0.00013813,2]
[398127351,1765389038795,-324.20393953,0.00013813,2]
[398127352,1765389038806,-500.0,0.00013813,2]
[398127353,1765389038816,-500.0,0.00013813,2]
[398127354,1765389038831,-69.28433272,0.00013813,2]
[398127355,1765389038854,-430.71566728,0.00013813,2]
[398127356,1765389038864,-280.51525156,0.00013813,2]
[398127373,1765389040803,-219.48474844,0.00013813,2]
[398127374,1765389040812,-250.0,0.00013813,2]
[398127375,1765389040822,-188.57115564,0.00013813,2]
[398127376,1765389040838,-61.42884436,0.00013813,2]
[398127377,1765389040848,-250.0,0.00013813,2]
[398127378,1765389040858,-378.99115564,0.00013813,2]
[398127379,1765389040870,-154.89865927,0.00013813,2]
[398127380,1765389040880,-250.0,0.00013813,2]
[398127381,1765389040889,-250.0,0.00013813,2]
[398127382,1765389040899,-250.0,0.00013813,2]
[398127383,1765389040910,-250.0,0.00013813,2]
[398127384,1765389040921,-250.0,0.00013813,2]
[398127385,1765389040930,-250.0,0.00013813,2]
[398127386,1765389040939,-250.0,0.00013813,2]
[398127387,1765389040950,-250.0,0.00013813,2]
[398127388,1765389040959,-246.33193494,0.00013813,2]
[398127389,1765389040970,-300.0,0.0001382,2]
[398127390,1765389040980,-221.20172104,0.0001382,2]
[398127391,1765389040990,-5807.62757189,0.00013821,2]
[398127452,1765389043900,-315.98676429,0.00013821,2]
[398127601,1765389046458,-436.36671295,0.00013821,2]
[398127602,1765389057025,150.0,6.756e-05,2]
[398127603,1765389057425,150.0,7.078e-05,2]
[398127604,1765389057863,150.0,7.4e-05,2]
[398127605,1765389058314,150.0,7.721e-05,2]
[398127606,1765389059190,150.0,8.043e-05,2]
[398127607,1765389059613,170.26,8.365e-05,2]
[398127608,1765389059995,198.63,8.686e-05,2]
[398127609,1765389060401,227.01,9.008e-05,2]
[398127610,1765389060802,255.38,9.33e-05,2]
[398127611,1765389061236,283.76,9.652e-05,2]
[398127612,1765389103696,177.654,0.00013545,2]
[398127613,1765389127396,150.0,6.754e-05,2]
[398127614,1765389127479,150.0,7.076e-05,2]
[398127660,1765389703675,177.654,0.00013447,2]
[398127672,1765389911282,284.61842777,0.0001313,2]
[398127676,1765390216989,201.46584693,0.0001313,2]
[398127700,1765390232522,-150.0,0.00013609,2]
[398127702,1765390232531,-614.0,0.00013609,2]
[398127704,1765390232540,-772.86753285,0.0001362,2]
[398127706,1765390232552,-853.06756959,0.0001362,2]
[398127708,1765390232562,-300.0,0.00013696,2]
[398127710,1765390232571,-1200.0,0.00013697,2]
[398127712,1765390232581,-300.0,0.00013697,2]
[398127714,1765390232590,-1010.0,0.00013697,2]
[398127715,1765390232599,-149.51681302,0.00013698,2]
[398127717,1765390232611,-350.48318698,0.00013698,2]
[398127719,1765390232621,-500.0,0.00013698,2]
[398127721,1765390232630,-5828.11,0.00013698,2]
[398127723,1765390232640,-1774.06,0.00013698,2]
[398127725,1765390232650,-1131.81,0.00013698,2]
[398127727,1765390232660,-596.35,0.00013698,2]
[398127729,1765390232669,-9492.78,0.00013698,2]
[398127731,1765390232678,-530.17891453,0.00013698,2]
[398127733,1765390232687,-3782.78,0.00013698,2]
[398127735,1765390232697,-500.0,0.00013698,2]
[398127737,1765390232707,-4530.35,0.00013698,2]
[398127739,1765390232716,-1433.81,0.00013698,2]
[398127741,1765390232726,-2238.12,0.00013698,2]
[398127743,1765390232735,-1899.96,0.00013698,2]
[398127745,1765390232746,-500.0,0.00013698,2]
[398127747,1765390232755,-772.29,0.00013698,2]
[398127749,1765390232765,-2426.04,0.00013698,2]
[398127751,1765390232774,-500.0,0.00013698,2]
[398127753,1765390232784,-616.65,0.00013698,2]
[398127755,1765390232793,-2285.35,0.00013698,2]
[398127757,1765390232803,-500.0,0.00013698,2]
[398127759,1765390232812,-500.8538317,0.00013698,2]
[398127761,1765390232821,-500.0,0.00013698,2]
[398127763,1765390232830,-1301.88,0.00013698,2]
[398127765,1765390232840,-811.78,0.00013698,2]
[398127767,1765390232850,-544.89,0.00013698,2]
[398127768,1765390232859,-1866.54,0.00013698,2]
[398127770,1765390232869,-1000.0,0.00013699,2]
[398127772,1765390232878,-938.17,0.00013699,2]
[398127774,1765390232887,-3145.29,0.00013699,2]
[398127776,1765390232897,-1078.73,0.00013699,2]
[398127778,1765390232907,-1890.97,0.00013699,2]
[398127780,1765390232916,-500.0,0.00013699,2]
[398127782,1765390232926,-655.79,0.00013699,2]
[398127784,1765390232936,-851.63,0.00013699,2]
[398127787,1765390232946,-609.08462935,0.00013699,2]
[398127788,1765390232955,-5276.7,0.00013699,2]
[398127790,1765390232965,-992.2,0.00013699,2]
[398127792,1765390232975,-779.36,0.00013699,2]
[398127794,1765390232984,-500.0,0.00013699,2]
[398127797,1765390232994,-500.0,0.00013699,2]
[398127798,1765390233003,-1599.75,0.00013699,2]
[398127800,1765390233014,-1513.08,0.00013699,2]
[398127802,1765390233023,-1563.24,0.00013699,2]
[398127804,1765390233032,-2761.87,0.00013699,2]
[398127806,1765390233042,-500.0,0.00013699,2]
[398127808,1765390233052,-3161.26,0.00013699,2]
[398127810,1765390233061,-1424.35,0.00013699,2]
[398127812,1765390233071,-500.0,0.00013699,2]
[398127814,1765390233081,-896.94,0.00013699,2]
[398127816,1765390233090,-500.41780382,0.00013699,2]
[398127818,1765390233100,-2516.07,0.00013699,2]
[398127820,1765390233110,-585.95,0.00013699,2]
[398127822,1765390233121,-500.0,0.00013699,2]
[398127824,1765390233130,-670.0,0.00013699,2]
[398127826,1765390233140,-1355.66509314,0.00013699,2]
[398127874,1765390238833,-899.08,0.00013698,2]
[398127876,1765390238843,-640.09377249,0.00013698,2]
[398127879,1765390238856,-1172.08622751,0.00013698,2]
[398127881,1765390238866,-520.55490686,0.00013699,2]
[398127883,1765390238876,-659.3596345,0.00013699,2]
[398127885,1765390238888,-446.94503474,0.00013699,2]
[398127988,1765390240998,-374.08989249,0.00013699,2]
[398127989,1765390241009,-262.0624995,0.00013699,2]
[398127990,1765390241021,-534.44293877,0.00013699,2]
[398127991,1765390241032,-500.0,0.00013699,2]
[398127992,1765390241043,-500.0,0.00013699,2]
[398127993,1765390241053,-1229.14,0.00013699,2]
[398127994,1765390241064,-1537.15,0.00013699,2]
[398127995,1765390241074,-500.0,0.00013699,2]
[398127996,1765390241090,-1555.94,0.00013699,2]
[398127997,1765390241102,-1638.35,0.00013699,2]
[398127998,1765390241112,-10320.42,0.00013699,2]
[398127999,1765390241122,-574.27,0.00013699,2]
[398128000,1765390241132,-2745.51,0.00013699,2]
[398128001,1765390241142,-2316.94,0.00013699,2]
[398128002,1765390241152,-1830.1,0.00013699,2]
[398128003,1765390241162,-1373.4,0.00013699,2]
[398128004,1765390241172,-8249.23,0.00013699,2]
[398128005,1765390241182,-4619.17,0.00013699,2]
[398128006,1765390241191,-154.84120473,0.00013699,2]
[398128007,1765390241201,-889.39,0.00013699,2]
[398128008,1765390241212,-32575.57678946,0.000137,2]
[398128009,1765390241222,-151.0,0.000137,3]
[398128010,1765390241236,-151.0,0.000137,3]
[398128011,1765390241246,-151.0,0.000137,3]
[398128012,1765390241256,-151.0,0.000137,3]
[398128013,1765390241265,-151.0,0.000137,3]
[398128014,1765390241276,-151.0,0.000137,3]
[398128015,1765390241285,-151.0,0.000137,3]
[398128016,1765390241295,-151.0,0.000137,3]
[398128017,1765390241306,-151.0,0.000137,3]
[398128018,1765390241316,-151.0,0.000137,3]
[398128019,1765390241326,-151.0,0.000137,3]
[398128020,1765390241336,-151.0,0.000137,3]
[398128021,1765390241345,-151.0,0.000137,3]
[398128022,1765390241356,-151.0,0.000137,3]
[398128023,1765390241365,-151.0,0.000137,3]
[398128024,1765390241375,-151.0,0.000137,3]
[398128025,1765390241385,-151.0,0.000137,3]
[398128026,1765390241394,-151.0,0.000137,3]
[398128027,1765390241404,-151.0,0.000137,3]
[398128028,1765390241414,-151.0,0.000137,3]
[398128029,1765390241423,-533.88981491,0.00013713,2]
[398128030,1765390241433,-500.0,0.00013713,2]
[398128031,1765390241442,-500.0,0.00013713,2]
[398128032,1765390241452,-500.0,0.00013713,2]
[398128033,1765390241462,-500.0,0.00013713,2]
[398128034,1765390241471,-500.0,0.00013713,2]
[398128035,1765390241480,-500.0,0.00013713,2]
[398128036,1765390241490,-500.0,0.00013713,2]
[398128037,1765390241917,-500.0,0.00013713,2]
[398128038,1765390241928,-500.0,0.00013713,2]
[398128039,1765390241938,-2579.17784983,0.00013713,2]
[398128040,1765390241948,-1000.0,0.00013713,2]
[398128041,1765390241957,-500.0,0.0001372,2]
[398128042,1765390241967,-500.0,0.0001372,2]
[398128043,1765390241977,-500.0,0.0001372,2]
[398128044,1765390241987,-881.45,0.0001372,2]
[398128045,1765390241997,-500.0,0.0001372,2]
[398128046,1765390242006,-500.0,0.0001372,2]
[398128047,1765390242017,-500.0,0.0001372,2]
[398128048,1765390242027,-500.0,0.0001372,2]
[398128049,1765390242036,-500.0,0.0001372,2]
[398128050,1765390242047,-655.07,0.0001372,2]
[398128051,1765390242056,-735.04,0.0001372,2]
[398128052,1765390242065,-290.11409198,0.0001372,2]
[398128053,1765390242075,-500.0,0.0001372,2]
[398128054,1765390242084,-500.0,0.0001372,2]
[398128055,1765390242095,-500.0,0.0001372,2]
[398128056,1765390242105,-500.0,0.0001372,2]
[398128057,1765390242114,-500.0,0.0001372,2]
[398128058,1765390242124,-500.0,0.0001372,2]
[398128059,1765390242134,-390.20537032,0.0001372,2]
[398128060,1765390242144,-500.0,0.0001372,2]
[398128061,1765390242154,-1184.62,0.0001372,2]
[398128062,1765390242164,-500.0,0.0001372,2]
[398128063,1765390242174,-793.89,0.0001372,2]
[398128064,1765390242183,-1001.97,0.0001372,2]
[398128065,1765390242193,-500.0,0.0001372,2]
[398128066,1765390242203,-500.0,0.0001372,2]
[398128067,1765390242213,-500.0,0.0001372,2]
[398128068,1765390242223,-500.0,0.0001372,2]
[398128069,1765390242235,-795.23,0.0001372,2]
[398128070,1765390242246,-500.0,0.0001372,2]
[398128071,1765390242255,-500.0,0.0001372,2]
[398128072,1765390242264,-500.0,0.0001372,2]
[398128073,1765390242275,-500.0,0.0001372,2]
[398128074,1765390242284,-500.6535951,0.0001372,2]
[398128075,1765390242295,-500.0,0.0001372,2]
[398128076,1765390242304,-500.0,0.0001372,2]
[398128077,1765390242316,-500.44625279,0.0001372,2]
[398128078,1765390242325,-631.26,0.0001372,2]
[398128079,1765390242335,-500.0,0.0001372,2]
[398128080,1765390242345,-500.0,0.0001372,2]
[398128081,1765390242358,-798.4,0.0001372,2]
[398128082,1765390242368,-500.0,0.0001372,2]
[398128083,1765390242378,-500.0,0.0001372,2]
[398128084,1765390242388,-500.0,0.0001372,2]
[398128085,1765390242398,-500.0,0.0001372,2]
[398128086,1765390242407,-500.0,0.0001372,2]
[398128087,1765390242416,-500.0,0.0001372,2]
[398128088,1765390242426,-500.0,0.0001372,2]
[398128089,1765390242436,-500.0,0.0001372,2]
[398128090,1765390242446,-500.61299011,0.0001372,2]
[398128091,1765390242456,-500.0,0.0001372,2]
[398128092,1765390242465,-2902.99,0.0001372,2]
[398128093,1765390242475,-500.0,0.0001372,2]
[398128094,1765390242484,-455.939069,0.0001372,2]
[398128095,1765390242494,-455.939069,0.0001372,2]
[398128096,1765390242504,-455.939069,0.0001372,2]
[398128097,1765390242514,-455.939069,0.0001372,2]
[398128098,1765390242524,-455.939069,0.0001372,2]
[398128099,1765390242545,-455.939069,0.0001372,2]
[398128100,1765390242561,-455.939069,0.0001372,2]
[398128101,1765390242571,-455.939069,0.0001372,2]
[398128102,1765390242581,-455.939069,0.0001372,2]
[398128103,1765390242590,-455.939069,0.0001372,2]
[398128104,1765390242600,-455.939069,0.0001372,2]
[398128105,1765390242610,-455.939069,0.0001372,2]
[398128106,1765390242619,-455.939069,0.0001372,2]
[398128107,1765390242629,-455.939069,0.0001372,2]
[398128108,1765390242639,-455.939069,0.0001372,2]
[398128109,1765390242649,-455.939069,0.0001372,2]
[398128110,1765390242659,-455.939069,0.0001372,2]
[398128111,1765390242668,-455.939069,0.0001372,2]
[398128112,1765390242678,-455.939069,0.0001372,2]
[398128113,1765390242688,-455.939072,0.0001372,2]
[398128114,1765390242697,-501.7648356,0.0001372,2]
[398128115,1765390242707,-1892.1,0.0001372,2]
[398128116,1765390242717,-500.0,0.0001372,2]
[398128117,1765390242727,-1372.32,0.0001372,2]
[398128118,1765390242737,-151.0,0.0001372,2]
[398128119,1765390242747,-224.527553,0.0001372,2]
[398128120,1765390242756,-500.0,0.0001372,2]
[398128121,1765390242766,-628.58,0.0001372,2]
[398128122,1765390242775,-500.0,0.0001372,2]
[398128123,1765390242785,-1152.22,0.0001372,2]
[398128124,1765390242795,-500.0,0.0001372,2]
[398128125,1765390242805,-500.0,0.0001372,2]
[398128126,1765390242814,-500.0,0.0001372,2]
[398128127,1765390242824,-504.06,0.0001372,2]
[398128128,1765390242833,-500.0,0.0001372,2]
[398128129,1765390242843,-500.0,0.0001372,2]
[398128130,1765390242853,-1457.81,0.0001372,2]
[398128131,1765390242863,-500.0,0.0001372,2]
[398128132,1765390242872,-501.25296733,0.0001372,2]
[398128133,1765390242883,-500.0,0.0001372,2]
[398128134,1765390242893,-500.0,0.0001372,2]
[398128135,1765390242903,-500.0,0.0001372,2]
[398128136,1765390242913,-500.0,0.0001372,2]
[398128137,1765390242923,-622.14702737,0.0001372,2]
[398128138,1765390242933,-500.0,0.0001372,2]
[398128139,1765390242943,-500.0,0.0001372,2]